[Event "December 12 Early 2023"]
[Site "https://www.chess.com"]
[Date "2023.12.12"]
[Round "1"]
[White "Reinecke, Katharina"]
[Black "Asish Panda"]
[Result "0-1"]
[Board "226"]
[TimeControl "180+1"]
[WhiteFideId "12929727"]
[BlackFideId "45012458"]
[WhiteElo "2007"]
[BlackElo "2536"]
[WhiteTeam "GER"]
[BlackTeam "IND"]
[WhiteClock "0:00:11"]
[BlackClock "0:01:30"]

1. d4 {[%clk 0:02:59]}  d5 {[%clk 0:02:59]} 2. c4 {[%clk 0:02:58]}  e6 {[%clk 0:02:58]} 3. Nf3 {[%clk 0:02:58]}  Nf6 {[%clk 0:02:58]} 4. g3 {[%clk 0:02:57]}  Be7 {[%clk 0:02:58]} 5. Bg2 {[%clk 0:02:57]}  O-O {[%clk 0:02:58]} 6. O-O {[%clk 0:02:56]}  b6 {[%clk 0:02:59]} 7. cxd5 {[%clk 0:02:55]}  exd5 {[%clk 0:02:55]} 8. Nc3 {[%clk 0:02:51]}  Bb7 {[%clk 0:02:54]} 9. a3 {[%clk 0:02:50]}  Nbd7 {[%clk 0:02:44]} 10. b4 {[%clk 0:02:46]}  Rc8 {[%clk 0:02:34]} 11. Bf4 {[%clk 0:02:31]}  a6 {[%clk 0:02:29]} 12. Rc1 {[%clk 0:02:25]}  c5 {[%clk 0:02:17]} 13. bxc5 {[%clk 0:02:14]}  bxc5 {[%clk 0:02:16]} 14. Na4 {[%clk 0:01:36]}  c4 {[%clk 0:01:55]} 15. Rb1 {[%clk 0:01:18]}  Bc6 {[%clk 0:01:52]} 16. Bc1 {[%clk 0:00:53]}  Ne4 {[%clk 0:01:47]} 17. e3 {[%clk 0:00:47]}  Bxa4 {[%clk 0:01:45]} 18. Qxa4 {[%clk 0:00:45]}  Nc3 {[%clk 0:01:46]} 19. Qc2 {[%clk 0:00:35]}  Nxb1 {[%clk 0:01:45]} 20. Qxb1 {[%clk 0:00:36]}  Rb8 {[%clk 0:01:46]} 21. Qc2 {[%clk 0:00:33]}  Qa5 {[%clk 0:01:45]} 22. Bd2 {[%clk 0:00:20]}  Qxa3 {[%clk 0:01:42]} 23. Ne5 {[%clk 0:00:20]}  Nxe5 {[%clk 0:01:41]} 24. dxe5 {[%clk 0:00:20]}  Rfd8 {[%clk 0:01:40]} 25. Rb1 {[%clk 0:00:19]}  Rxb1+ {[%clk 0:01:38]} 26. Qxb1 {[%clk 0:00:19]}  Qb3 {[%clk 0:01:38]} 27. Qf5 {[%clk 0:00:16]}  Qd1+ {[%clk 0:01:36]} 28. Bf1 {[%clk 0:00:16]}  Qxd2 {[%clk 0:01:35]} 29. e6 {[%clk 0:00:11]}  f6 {[%clk 0:01:30]} 0-1

[Event "December 12 Early 2023"]
[Site "https://www.chess.com"]
[Date "2023.12.12"]
[Round "1"]
[White "Gazineu Neto, Rubens"]
[Black "Eilers, Stefan"]
[Result "0-1"]
[Board "228"]
[TimeControl "180+1"]
[WhiteFideId "2174685"]
[BlackFideId "4609565"]
[WhiteElo "1978"]
[BlackElo "2533"]
[WhiteTeam "BRA"]
[BlackTeam "GER"]
[WhiteClock "0:00:00"]
[BlackClock "0:00:27"]

1. e4 {[%clk 0:03:00]}  Nc6 {[%clk 0:02:59]} 2. d4 {[%clk 0:02:54]}  d5 {[%clk 0:02:59]} 3. e5 {[%clk 0:02:49]}  Bf5 {[%clk 0:02:58]} 4. c3 {[%clk 0:02:48]}  e6 {[%clk 0:02:57]} 5. Nf3 {[%clk 0:02:47]}  f6 {[%clk 0:02:57]} 6. Bf4 {[%clk 0:02:40]}  g5 {[%clk 0:02:55]} 7. Bg3 {[%clk 0:02:02]}  g4 {[%clk 0:02:56]} 8. Nh4 {[%clk 0:01:55]}  Bxb1 {[%clk 0:02:47]} 9. Rxb1 {[%clk 0:01:47]}  fxe5 {[%clk 0:02:41]} 10. dxe5 {[%clk 0:01:36]}  Bc5 {[%clk 0:02:35]} 11. Qxg4 {[%clk 0:01:30]}  Qd7 {[%clk 0:02:35]} 12. Qh5+ {[%clk 0:01:08]}  Qf7 {[%clk 0:02:31]} 13. Be2 {[%clk 0:01:08]}  Nge7 {[%clk 0:02:24]} 14. Qxf7+ {[%clk 0:00:58]}  Kxf7 {[%clk 0:02:24]} 15. O-O {[%clk 0:00:54]}  Ng6 {[%clk 0:02:14]} 16. Bh5 {[%clk 0:00:41]}  Kg7 {[%clk 0:02:06]} 17. b4 {[%clk 0:00:36]}  Bb6 {[%clk 0:02:03]} 18. Nxg6 {[%clk 0:00:34]}  hxg6 {[%clk 0:02:03]} 19. Bg4 {[%clk 0:00:34]}  Kf7 {[%clk 0:02:01]} 20. a4 {[%clk 0:00:29]}  a5 {[%clk 0:01:59]} 21. b5 {[%clk 0:00:24]}  Ne7 {[%clk 0:01:59]} 22. Rbc1 {[%clk 0:00:20]}  Bc5 {[%clk 0:01:52]} 23. c4 {[%clk 0:00:20]}  d4 {[%clk 0:01:52]} 24. Bf3 {[%clk 0:00:16]}  Rab8 {[%clk 0:01:47]} 25. Be4 {[%clk 0:00:15]}  Nf5 {[%clk 0:01:37]} 26. Bf4 {[%clk 0:00:14]}  b6 {[%clk 0:01:30]} 27. g3 {[%clk 0:00:12]}  Rbd8 {[%clk 0:01:16]} 28. Rcd1 {[%clk 0:00:11]}  Bb4 {[%clk 0:01:01]} 29. Bg5 {[%clk 0:00:10]}  Be7 {[%clk 0:00:56]} 30. Bf4 {[%clk 0:00:06]}  Ng7 {[%clk 0:00:41]} 31. Kg2 {[%clk 0:00:06]}  Nh5 {[%clk 0:00:41]} 32. Bc1 {[%clk 0:00:05]}  Bb4 {[%clk 0:00:39]} 33. Bb2 {[%clk 0:00:05]}  Bc5 {[%clk 0:00:34]} 34. Rd3 {[%clk 0:00:05]}  Ng7 {[%clk 0:00:28]} 35. Rfd1 {[%clk 0:00:04]}  Rd7 {[%clk 0:00:28]} 36. Bxd4 {[%clk 0:00:03]}  Rhd8 {[%clk 0:00:26]} 37. Bxc5 {[%clk 0:00:03]}  Rxd3 {[%clk 0:00:27]} 38. Rxd3 {[%clk 0:00:02]}  Rxd3 {[%clk 0:00:27]} 39. Bxd3 {[%clk 0:00:02]}  bxc5 {[%clk 0:00:28]} 40. g4 {[%clk 0:00:00]}  Ne8 {[%clk 0:00:27]} 0-1

[Event "December 12 Early 2023"]
[Site "https://www.chess.com"]
[Date "2023.12.12"]
[Round "1"]
[White "Durucay, Uygar"]
[Black "Santos, Isaque Goncalves"]
[Result "1-0"]
[Board "229"]
[TimeControl "180+1"]
[WhiteFideId "44591560"]
[BlackFideId "2103885"]
[WhiteElo "2532"]
[BlackElo "1842"]
[WhiteTeam "TUR"]
[BlackTeam "BRA"]
[WhiteClock "0:00:12"]
[BlackClock "0:00:07"]

1. d4 {[%clk 0:03:00]}  d5 {[%clk 0:02:58]} 2. c4 {[%clk 0:03:00]}  e6 {[%clk 0:02:57]} 3. Nc3 {[%clk 0:02:58]}  c6 {[%clk 0:02:57]} 4. e4 {[%clk 0:02:52]}  dxe4 {[%clk 0:02:56]} 5. Nxe4 {[%clk 0:02:53]}  Nf6 {[%clk 0:02:56]} 6. Nxf6+ {[%clk 0:02:50]}  Qxf6 {[%clk 0:02:55]} 7. Nf3 {[%clk 0:02:50]}  Bb4+ {[%clk 0:02:53]} 8. Bd2 {[%clk 0:02:49]}  Bxd2+ {[%clk 0:02:50]} 9. Qxd2 {[%clk 0:02:50]}  Nd7 {[%clk 0:02:36]} 10. Bd3 {[%clk 0:02:47]}  h6 {[%clk 0:02:33]} 11. O-O {[%clk 0:02:46]}  c5 {[%clk 0:02:25]} 12. d5 {[%clk 0:02:44]}  O-O {[%clk 0:02:16]} 13. dxe6 {[%clk 0:02:37]}  Qxe6 {[%clk 0:02:01]} 14. Rfe1 {[%clk 0:02:33]}  Qf6 {[%clk 0:01:59]} 15. Rad1 {[%clk 0:02:32]}  Nb6 {[%clk 0:01:45]} 16. h3 {[%clk 0:02:22]}  Be6 {[%clk 0:01:44]} 17. Qc2 {[%clk 0:02:19]}  Rad8 {[%clk 0:01:40]} 18. b3 {[%clk 0:02:11]}  Bxh3 {[%clk 0:01:39]} 19. Be4 {[%clk 0:02:05]}  Rxd1 {[%clk 0:01:36]} 20. Rxd1 {[%clk 0:02:02]}  Bc8 {[%clk 0:01:35]} 21. Qd2 {[%clk 0:01:52]}  Nd7 {[%clk 0:01:31]} 22. Bb1 {[%clk 0:01:35]}  Ne5 {[%clk 0:01:29]} 23. Nxe5 {[%clk 0:01:30]}  Qxe5 {[%clk 0:01:29]} 24. Re1 {[%clk 0:01:23]}  Qd4 {[%clk 0:01:27]} 25. Qc2 {[%clk 0:01:15]}  g6 {[%clk 0:01:25]} 26. Rd1 {[%clk 0:01:11]}  Qg4 {[%clk 0:01:24]} 27. f3 {[%clk 0:01:05]}  Qg5 {[%clk 0:01:23]} 28. Qf2 {[%clk 0:01:04]}  Bf5 {[%clk 0:01:22]} 29. Qxc5 {[%clk 0:00:59]}  Bxb1 {[%clk 0:01:01]} 30. Qxg5 {[%clk 0:00:57]}  hxg5 {[%clk 0:01:02]} 31. Rxb1 {[%clk 0:00:57]}  Rd8 {[%clk 0:01:01]} 32. Rb2 {[%clk 0:00:57]}  Kg7 {[%clk 0:01:01]} 33. Kf2 {[%clk 0:00:56]}  f5 {[%clk 0:01:01]} 34. b4 {[%clk 0:00:50]}  Rd4 {[%clk 0:01:00]} 35. c5 {[%clk 0:00:50]}  Kf6 {[%clk 0:00:53]} 36. Ke3 {[%clk 0:00:49]}  Rc4 {[%clk 0:00:52]} 37. Kd3 {[%clk 0:00:45]}  Rc1 {[%clk 0:00:52]} 38. Kd4 {[%clk 0:00:37]}  Re1 {[%clk 0:00:32]} 39. b5 {[%clk 0:00:34]}  Rd1+ {[%clk 0:00:30]} 40. Kc4 {[%clk 0:00:33]}  Rc1+ {[%clk 0:00:30]} 41. Kb4 {[%clk 0:00:33]}  Ke6 {[%clk 0:00:30]} 42. a4 {[%clk 0:00:22]}  Kd5 {[%clk 0:00:29]} 43. Rd2+ {[%clk 0:00:22]}  Ke5 {[%clk 0:00:29]} 44. b6 {[%clk 0:00:13]}  Rb1+ {[%clk 0:00:23]} 45. Ka5 {[%clk 0:00:13]}  a6 {[%clk 0:00:22]} 46. c6 {[%clk 0:00:11]}  bxc6 {[%clk 0:00:11]} 47. Kxa6 {[%clk 0:00:12]}  c5 {[%clk 0:00:11]} 48. b7 {[%clk 0:00:11]}  c4 {[%clk 0:00:11]} 49. Ka7 {[%clk 0:00:10]}  c3 {[%clk 0:00:12]} 50. Rc2 {[%clk 0:00:10]}  Kd4 {[%clk 0:00:11]} 51. b8=Q {[%clk 0:00:11]}  Rxb8 {[%clk 0:00:11]} 52. Kxb8 {[%clk 0:00:12]}  Kd3 {[%clk 0:00:11]} 53. Ra2 {[%clk 0:00:09]}  c2 {[%clk 0:00:10]} 54. Rxc2 {[%clk 0:00:10]}  Kxc2 {[%clk 0:00:10]} 55. a5 {[%clk 0:00:11]}  g4 {[%clk 0:00:10]} 56. fxg4 {[%clk 0:00:10]}  f4 {[%clk 0:00:10]} 57. a6 {[%clk 0:00:11]}  Kd2 {[%clk 0:00:10]} 58. a7 {[%clk 0:00:12]}  Ke2 {[%clk 0:00:11]} 59. a8=Q {[%clk 0:00:12]}  Kf2 {[%clk 0:00:12]} 60. Qf3+ {[%clk 0:00:13]}  Kg1 {[%clk 0:00:11]} 61. Qxf4 {[%clk 0:00:13]}  g5 {[%clk 0:00:11]} 62. Qxg5 {[%clk 0:00:14]}  Kh1 {[%clk 0:00:10]} 63. Qd5 {[%clk 0:00:12]}  Kg1 {[%clk 0:00:07]} 64. g5 {[%clk 0:00:12]} 1-0

[Event "December 12 Early 2023"]
[Site "https://www.chess.com"]
[Date "2023.12.12"]
[Round "2"]
[White "Leiva, Gianmarco"]
[Black "Aronian, Levon"]
[Result "0-1"]
[Board "1"]
[TimeControl "180+1"]
[WhiteFideId "3804399"]
[BlackFideId "13300474"]
[WhiteElo "2663"]
[BlackElo "3118"]
[WhiteTeam "PER"]
[BlackTeam "USA"]
[WhiteClock "0:00:06"]
[BlackClock "0:01:22"]

1. d4 {[%clk 0:02:49]}  Nf6 {[%clk 0:02:59]} 2. Nf3 {[%clk 0:02:49]}  g6 {[%clk 0:02:59]} 3. Nc3 {[%clk 0:02:49]}  d5 {[%clk 0:02:56]} 4. Bf4 {[%clk 0:02:49]}  Bg7 {[%clk 0:02:54]} 5. Nb5 {[%clk 0:02:49]}  Na6 {[%clk 0:02:54]} 6. e3 {[%clk 0:02:50]}  Nh5 {[%clk 0:02:52]} 7. Bg5 {[%clk 0:02:49]}  O-O {[%clk 0:02:52]} 8. Be2 {[%clk 0:02:47]}  c6 {[%clk 0:02:48]} 9. Nc3 {[%clk 0:02:45]}  Nc7 {[%clk 0:02:48]} 10. Bh4 {[%clk 0:02:36]}  Bg4 {[%clk 0:02:37]} 11. h3 {[%clk 0:02:30]}  Bxf3 {[%clk 0:02:37]} 12. Bxf3 {[%clk 0:02:31]}  Nf6 {[%clk 0:02:37]} 13. Ne2 {[%clk 0:02:22]}  Nd7 {[%clk 0:02:30]} 14. Rc1 {[%clk 0:02:16]}  Qe8 {[%clk 0:02:21]} 15. Bg3 {[%clk 0:02:10]}  e5 {[%clk 0:02:21]} 16. dxe5 {[%clk 0:02:04]}  Bxe5 {[%clk 0:02:20]} 17. c3 {[%clk 0:02:02]}  a5 {[%clk 0:02:16]} 18. O-O {[%clk 0:01:55]}  a4 {[%clk 0:02:16]} 19. Bg4 {[%clk 0:01:47]}  f5 {[%clk 0:02:12]} 20. Bf3 {[%clk 0:01:47]}  Qe7 {[%clk 0:01:56]} 21. Qc2 {[%clk 0:01:19]}  Bxg3 {[%clk 0:01:47]} 22. Nxg3 {[%clk 0:01:20]}  Ne5 {[%clk 0:01:48]} 23. Be2 {[%clk 0:01:16]}  Ne6 {[%clk 0:01:49]} 24. Rfe1 {[%clk 0:01:03]}  f4 {[%clk 0:01:39]} 25. exf4 {[%clk 0:01:02]}  Nxf4 {[%clk 0:01:39]} 26. Bd1 {[%clk 0:00:15]}  Nfd3 {[%clk 0:01:27]} 27. Bg4 {[%clk 0:00:09]}  Nxe1 {[%clk 0:01:22]} 28. Rxe1 {[%clk 0:00:06]}  Nf3+ {[%clk 0:01:22]} 0-1

[Event "December 12 Early 2023"]
[Site "https://www.chess.com"]
[Date "2023.12.12"]
[Round "2"]
[White "Nepomniachtchi, Ian"]
[Black "Adla, Diego"]
[Result "1-0"]
[Board "2"]
[TimeControl "180+1"]
[WhiteFideId "4168119"]
[BlackFideId "100072"]
[WhiteElo "3113"]
[BlackElo "2661"]
[WhiteTeam "RUS"]
[BlackTeam "ARG"]
[WhiteClock "0:00:25"]
[BlackClock "0:00:11"]

1. e4 {[%clk 0:03:00]}  e5 {[%clk 0:02:56]} 2. Bc4 {[%clk 0:02:59]}  Nf6 {[%clk 0:02:54]} 3. Qf3 {[%clk 0:02:59]}  Nc6 {[%clk 0:02:37]} 4. Ne2 {[%clk 0:02:58]}  Be7 {[%clk 0:02:29]} 5. d3 {[%clk 0:02:57]}  d6 {[%clk 0:02:26]} 6. h3 {[%clk 0:02:55]}  Na5 {[%clk 0:02:26]} 7. Nbc3 {[%clk 0:02:54]}  c6 {[%clk 0:02:22]} 8. g4 {[%clk 0:02:41]}  Nxc4 {[%clk 0:02:17]} 9. dxc4 {[%clk 0:02:41]}  Be6 {[%clk 0:02:18]} 10. g5 {[%clk 0:02:29]}  Nd7 {[%clk 0:02:15]} 11. b3 {[%clk 0:02:27]}  Bxg5 {[%clk 0:02:11]} 12. Bxg5 {[%clk 0:02:21]}  Qxg5 {[%clk 0:02:12]} 13. Rg1 {[%clk 0:02:22]}  Qf6 {[%clk 0:02:11]} 14. Qd3 {[%clk 0:02:18]}  O-O-O {[%clk 0:02:04]} 15. Qxd6 {[%clk 0:02:06]}  Bxh3 {[%clk 0:02:01]} 16. Qa3 {[%clk 0:01:53]}  Kb8 {[%clk 0:01:57]} 17. O-O-O {[%clk 0:01:53]}  h5 {[%clk 0:01:51]} 18. Rd3 {[%clk 0:01:41]}  Be6 {[%clk 0:01:46]} 19. Qd6+ {[%clk 0:01:40]}  Ka8 {[%clk 0:01:33]} 20. Rgd1 {[%clk 0:01:37]}  h4 {[%clk 0:01:29]} 21. f4 {[%clk 0:01:37]}  exf4 {[%clk 0:01:22]} 22. Nxf4 {[%clk 0:01:27]}  Nb8 {[%clk 0:01:03]} 23. Nxe6 {[%clk 0:01:25]}  fxe6 {[%clk 0:00:54]} 24. Qc7 {[%clk 0:00:59]}  Rxd3 {[%clk 0:00:52]} 25. Rxd3 {[%clk 0:01:00]}  h3 {[%clk 0:00:49]} 26. Qh2 {[%clk 0:01:00]}  Qg5+ {[%clk 0:00:45]} 27. Kb2 {[%clk 0:01:00]}  Qg2 {[%clk 0:00:46]} 28. Qxg2 {[%clk 0:00:57]}  hxg2 {[%clk 0:00:45]} 29. Rg3 {[%clk 0:00:58]}  Rh2 {[%clk 0:00:44]} 30. Rxg7 {[%clk 0:00:48]}  a6 {[%clk 0:00:44]} 31. Na4 {[%clk 0:00:43]}  Nd7 {[%clk 0:00:42]} 32. c5 {[%clk 0:00:41]}  Kb8 {[%clk 0:00:35]} 33. b4 {[%clk 0:00:34]}  Kc8 {[%clk 0:00:34]} 34. Nb6+ {[%clk 0:00:34]}  Nxb6 {[%clk 0:00:33]} 35. cxb6 {[%clk 0:00:35]}  e5 {[%clk 0:00:30]} 36. Kb3 {[%clk 0:00:33]}  Kd8 {[%clk 0:00:29]} 37. c3 {[%clk 0:00:28]}  Ke8 {[%clk 0:00:29]} 38. Kc4 {[%clk 0:00:29]}  Kf8 {[%clk 0:00:29]} 39. Rg5 {[%clk 0:00:29]}  Kf7 {[%clk 0:00:28]} 40. Kc5 {[%clk 0:00:29]}  Kf6 {[%clk 0:00:29]} 41. Rg3 {[%clk 0:00:28]}  Ke6 {[%clk 0:00:20]} 42. c4 {[%clk 0:00:25]}  Ke7 {[%clk 0:00:18]} 43. a4 {[%clk 0:00:25]}  Ke6 {[%clk 0:00:18]} 44. a5 {[%clk 0:00:26]}  Ke7 {[%clk 0:00:17]} 45. b5 {[%clk 0:00:24]}  cxb5 {[%clk 0:00:17]} 46. cxb5 {[%clk 0:00:25]}  g1=Q+ {[%clk 0:00:15]} 47. Rxg1 {[%clk 0:00:25]}  Rc2+ {[%clk 0:00:15]} 48. Kd5 {[%clk 0:00:25]}  axb5 {[%clk 0:00:15]} 49. Rg7+ {[%clk 0:00:24]}  Kf6 {[%clk 0:00:15]} 50. Rxb7 {[%clk 0:00:25]}  Ra2 {[%clk 0:00:15]} 51. Ra7 {[%clk 0:00:25]}  b4 {[%clk 0:00:11]} 52. b7 {[%clk 0:00:25]} 1-0

[Event "December 12 Early 2023"]
[Site "https://www.chess.com"]
[Date "2023.12.12"]
[Round "2"]
[White "Papasimakopoulos, Alexandros"]
[Black "Andreikin, Dmitry"]
[Result "0-1"]
[Board "3"]
[TimeControl "180+1"]
[WhiteFideId "4244125"]
[BlackFideId "4158814"]
[WhiteElo "2654"]
[BlackElo "3089"]
[WhiteTeam "GRE"]
[BlackTeam "FID"]
[WhiteClock "0:02:21"]
[BlackClock "0:02:00"]

1. d4 {[%clk 0:03:00]}  Nf6 {[%clk 0:02:59]} 2. c4 {[%clk 0:03:00]}  e6 {[%clk 0:02:58]} 3. Nc3 {[%clk 0:03:00]}  Bb4 {[%clk 0:02:56]} 4. Qc2 {[%clk 0:03:00]}  c5 {[%clk 0:02:55]} 5. dxc5 {[%clk 0:03:00]}  Na6 {[%clk 0:02:55]} 6. a3 {[%clk 0:03:00]}  Bxc3+ {[%clk 0:02:54]} 7. Qxc3 {[%clk 0:03:01]}  Nxc5 {[%clk 0:02:55]} 8. f3 {[%clk 0:03:02]}  a5 {[%clk 0:02:40]} 9. e4 {[%clk 0:03:01]}  O-O {[%clk 0:02:36]} 10. Be3 {[%clk 0:03:02]}  b6 {[%clk 0:02:34]} 11. Ne2 {[%clk 0:03:00]}  d5 {[%clk 0:02:29]} 12. cxd5 {[%clk 0:02:58]}  exd5 {[%clk 0:02:29]} 13. e5 {[%clk 0:02:56]}  Nfd7 {[%clk 0:02:28]} 14. Rd1 {[%clk 0:02:54]}  Re8 {[%clk 0:02:23]} 15. Nf4 {[%clk 0:02:37]}  Nxe5 {[%clk 0:02:17]} 16. Bb5 {[%clk 0:02:32]}  Qh4+ {[%clk 0:02:10]} 17. g3 {[%clk 0:02:25]}  Nxf3+ {[%clk 0:02:07]} 18. Kf2 {[%clk 0:02:24]}  Ne4+ {[%clk 0:02:03]} 19. Kxf3 {[%clk 0:02:24]}  Qg4+ {[%clk 0:02:02]} 20. Kg2 {[%clk 0:02:23]}  Nxc3 {[%clk 0:02:02]} 21. Bxe8 {[%clk 0:02:23]}  Nxd1 {[%clk 0:02:02]} 22. h3 {[%clk 0:02:23]}  Nxe3+ {[%clk 0:02:02]} 23. Kh2 {[%clk 0:02:22]}  Qf3 {[%clk 0:02:01]} 24. Ng6 {[%clk 0:02:21]}  Qg2# {[%clk 0:02:00]} 0-1

[Event "December 12 Early 2023"]
[Site "https://www.chess.com"]
[Date "2023.12.12"]
[Round "2"]
[White "Le, Tuan Minh"]
[Black "Souleidis, Georgios"]
[Result "1-0"]
[Board "4"]
[TimeControl "180+1"]
[WhiteFideId "12401153"]
[BlackFideId "4206827"]
[WhiteElo "3078"]
[BlackElo "2653"]
[WhiteTeam "VIE"]
[BlackTeam "GRE"]
[WhiteClock "0:00:09"]
[BlackClock "0:00:00"]

1. d4 {[%clk 0:03:00]}  Nf6 {[%clk 0:02:53]} 2. c4 {[%clk 0:03:01]}  g6 {[%clk 0:02:53]} 3. g3 {[%clk 0:03:00]}  Bg7 {[%clk 0:02:54]} 4. Bg2 {[%clk 0:03:01]}  O-O {[%clk 0:02:55]} 5. Nf3 {[%clk 0:03:01]}  d6 {[%clk 0:02:55]} 6. O-O {[%clk 0:03:01]}  Nc6 {[%clk 0:02:55]} 7. d5 {[%clk 0:02:48]}  Na5 {[%clk 0:02:49]} 8. Nfd2 {[%clk 0:02:47]}  c5 {[%clk 0:02:48]} 9. Nc3 {[%clk 0:02:46]}  a6 {[%clk 0:02:47]} 10. Qc2 {[%clk 0:02:39]}  b5 {[%clk 0:02:44]} 11. cxb5 {[%clk 0:02:39]}  axb5 {[%clk 0:02:45]} 12. Nxb5 {[%clk 0:02:40]}  Qb6 {[%clk 0:02:44]} 13. Nc3 {[%clk 0:02:25]}  Bf5 {[%clk 0:02:43]} 14. e4 {[%clk 0:02:25]}  Bc8 {[%clk 0:02:41]} 15. b3 {[%clk 0:02:20]}  Ba6 {[%clk 0:02:41]} 16. Re1 {[%clk 0:02:20]}  Ng4 {[%clk 0:02:36]} 17. Bb2 {[%clk 0:02:18]}  Ne5 {[%clk 0:02:33]} 18. Na4 {[%clk 0:02:10]}  Qa7 {[%clk 0:02:14]} 19. Bc3 {[%clk 0:02:10]}  Bb5 {[%clk 0:01:56]} 20. Nb2 {[%clk 0:02:08]}  Qa6 {[%clk 0:01:40]} 21. f4 {[%clk 0:01:54]}  Nd3 {[%clk 0:01:37]} 22. Bxg7 {[%clk 0:01:51]}  Nxe1 {[%clk 0:00:57]} 23. Qc3 {[%clk 0:01:50]}  Nxg2 {[%clk 0:00:57]} 24. Bxf8 {[%clk 0:01:47]}  Rxf8 {[%clk 0:00:58]} 25. Kxg2 {[%clk 0:01:48]}  e6 {[%clk 0:00:48]} 26. dxe6 {[%clk 0:01:46]}  fxe6 {[%clk 0:00:48]} 27. Re1 {[%clk 0:01:42]}  Bc6 {[%clk 0:00:32]} 28. Kg1 {[%clk 0:01:40]}  Ba8 {[%clk 0:00:28]} 29. Qd3 {[%clk 0:01:17]}  Qc6 {[%clk 0:00:20]} 30. Qc3 {[%clk 0:01:03]}  Qb6 {[%clk 0:00:14]} 31. Nbc4 {[%clk 0:01:04]}  Nxc4 {[%clk 0:00:15]} 32. Nxc4 {[%clk 0:01:04]}  Qc6 {[%clk 0:00:12]} 33. Nd2 {[%clk 0:00:37]}  d5 {[%clk 0:00:09]} 34. Qe5 {[%clk 0:00:34]}  c4 {[%clk 0:00:03]} 35. exd5 {[%clk 0:00:27]}  exd5 {[%clk 0:00:04]} 36. Qd4 {[%clk 0:00:20]}  c3 {[%clk 0:00:03]} 37. Rc1 {[%clk 0:00:21]}  Rc8 {[%clk 0:00:02]} 38. Nf3 {[%clk 0:00:21]}  Qa6 {[%clk 0:00:01]} 39. Rxc3 {[%clk 0:00:19]}  Rxc3 {[%clk 0:00:01]} 40. Qxc3 {[%clk 0:00:19]}  Qxa2 {[%clk 0:00:01]} 41. Ng5 {[%clk 0:00:12]}  Bb7 {[%clk 0:00:00]} 42. Qe1 {[%clk 0:00:09]} 1-0

[Event "December 12 Early 2023"]
[Site "https://www.chess.com"]
[Date "2023.12.12"]
[Round "2"]
[White "Koellner, Ruben Gideon"]
[Black "Pranav, V"]
[Result "0-1"]
[Board "5"]
[TimeControl "180+1"]
[WhiteFideId "12993093"]
[BlackFideId "25060783"]
[WhiteElo "2651"]
[BlackElo "3067"]
[WhiteTeam "GER"]
[BlackTeam "IND"]
[WhiteClock "0:00:00"]
[BlackClock "0:00:19"]

1. d4 {[%clk 0:03:00]}  Nf6 {[%clk 0:02:58]} 2. Nf3 {[%clk 0:03:00]}  g6 {[%clk 0:02:57]} 3. Nbd2 {[%clk 0:03:01]}  Bg7 {[%clk 0:02:57]} 4. e4 {[%clk 0:03:01]}  d6 {[%clk 0:02:57]} 5. Bc4 {[%clk 0:03:00]}  O-O {[%clk 0:02:58]} 6. O-O {[%clk 0:03:01]}  Nc6 {[%clk 0:02:58]} 7. c3 {[%clk 0:03:01]}  e5 {[%clk 0:02:58]} 8. dxe5 {[%clk 0:03:02]}  dxe5 {[%clk 0:02:58]} 9. Qe2 {[%clk 0:03:01]}  Qe7 {[%clk 0:02:58]} 10. a4 {[%clk 0:03:01]}  Nh5 {[%clk 0:02:50]} 11. g3 {[%clk 0:02:59]}  Bh3 {[%clk 0:02:48]} 12. Re1 {[%clk 0:02:59]}  a5 {[%clk 0:02:47]} 13. b3 {[%clk 0:02:59]}  Rfd8 {[%clk 0:02:44]} 14. Ba3 {[%clk 0:02:58]}  Qf6 {[%clk 0:02:44]} 15. Nf1 {[%clk 0:02:55]}  Bg4 {[%clk 0:02:41]} 16. Kg2 {[%clk 0:02:55]}  Nf4+ {[%clk 0:02:03]} 17. gxf4 {[%clk 0:02:53]}  exf4 {[%clk 0:02:04]} 18. e5 {[%clk 0:01:49]}  Qf5 {[%clk 0:01:34]} 19. Qe4 {[%clk 0:01:05]}  Qh5 {[%clk 0:01:12]} 20. Qxf4 {[%clk 0:00:31]}  Qh3+ {[%clk 0:01:06]} 21. Kg1 {[%clk 0:00:31]}  Bxf3 {[%clk 0:01:06]} 22. Bxf7+ {[%clk 0:00:31]}  Kh8 {[%clk 0:01:07]} 23. Qg3 {[%clk 0:00:31]}  Qxg3+ {[%clk 0:01:03]} 24. hxg3 {[%clk 0:00:17]}  Nxe5 {[%clk 0:01:03]} 25. Nh2 {[%clk 0:00:14]}  Nxf7 {[%clk 0:00:55]} 26. Nxf3 {[%clk 0:00:13]}  Bxc3 {[%clk 0:00:56]} 27. Re7 {[%clk 0:00:04]}  Bxa1 {[%clk 0:00:33]} 28. Rxf7 {[%clk 0:00:04]}  Rd5 {[%clk 0:00:29]} 29. Rxc7 {[%clk 0:00:03]}  b5 {[%clk 0:00:30]} 30. Kg2 {[%clk 0:00:02]}  Re8 {[%clk 0:00:25]} 31. Bc1 {[%clk 0:00:02]}  bxa4 {[%clk 0:00:20]} 32. bxa4 {[%clk 0:00:01]}  Bf6 {[%clk 0:00:20]} 33. Be3 {[%clk 0:00:01]}  Kg8 {[%clk 0:00:20]} 34. Ra7 {[%clk 0:00:01]}  Re7 {[%clk 0:00:19]} 35. Ra6 {[%clk 0:00:00]}  Kg7 {[%clk 0:00:19]} 0-1